Cogmind - Beta 9.3 @@@ ROGUE MODE // 2019.12.30 @ 12:23:22 // Winter2019/RPGLIKE Player: Stryker Result: Destroyed by G-73 Enforcer with Phase Gun Performance ------------- Evolutions (9) 4500 Regions Visited (23) 4600 Robots Destroyed (118) 590 Value Destroyed (11755) 11755 Prototype IDs (25) 500 Alien Tech Used (0) 0 Bonus (13729) 13729 TOTAL SCORE: 35674 Bonus ------- Triggered Max Security 1000 High Alert Combat Kills 798 Follower Combat Kills 4991 Entered Garrisons 2000 Used RIF Installer 5000 Friendly Fire -60 Cogmind --------- Core Integrity 0/1100 Matter 137/300 Energy 332/380 System Corruption 7% Temperature Cool (225) Movement Flying (30) Location -1/Access Parts ------- > --- POWER (1) -------- Cooled Antimatter Reactor > --- PROPULSION (3) --- Improved Cesium-ion Thruster Impulse Thruster Improved Q-thruster > --- UTILITY (15) ----- Layered Medium Armor Plating Antimissile System Relay Coupler [NC] (66) Relay Coupler [C] (48) Relay Coupler [C] (80) Relay Coupler [C] (84) Relay Coupler [C] (90) Relay Coupler [Sentry] (62) Relay Coupler [Sentry] (62) Relay Coupler [Sentry] (47) Relay Coupler [Sentry] (64) Relay Coupler [Demolisher] (48) Relay Coupler [Specialist] (43) Relay Coupler [Hunter] (11) Relay Coupler [Hunter] (50) > --- WEAPON (3) ------- Railgun Heavy Gauss Cannon Advanced Remote Datajack > --- INVENTORY (6) ---- Long-range Terrain Scanner Advanced Focal Shield Relay Coupler [Sentry] (70) Relay Coupler [Sentry] (60) Great Axe Force Lance Peak State ------------ > --- POWER ------------ Cooled Antimatter Reactor > --- PROPULSION ------- Improved Cesium-ion Thruster Impulse Thruster Improved Q-thruster > --- UTILITY ---------- Layered Medium Armor Plating Antimissile System Relay Coupler [NC] Relay Coupler [C] Relay Coupler [C] Relay Coupler [C] Relay Coupler [C] Relay Coupler [Sentry] Relay Coupler [Sentry] Relay Coupler [Sentry] Relay Coupler [Sentry] Relay Coupler [Demolisher] Relay Coupler [Specialist] Relay Coupler [Hunter] Relay Coupler [Hunter] > --- WEAPON ----------- Heavy Gauss Cannon Advanced Remote Datajack Force Lance > --- INVENTORY -------- Long-range Terrain Scanner Advanced Focal Shield Relay Coupler [Sentry] Relay Coupler [Sentry] Railgun Great Axe [Rating: 138] Favorites ----------- Power Light Angular Momentum Engine Engine Light Angular Momentum Engine Reactor Cooled Antimatter Reactor Propulsion Improved Cesium-ion Thruster Treads Light Treads Leg Aluminum Leg Wheel Compact Wheel Hover Unit Improved Hover Unit Flight Unit Improved Cesium-ion Thruster Utility Relay Coupler [Sentry] Device Advanced Sensor Array Processor Advanced Signal Interpreter Hackware Relay Coupler [Sentry] Protection Layered Medium Armor Plating Weapon Remote Datajack Ballistic Gun Flak Gun Ballistic Cannon Heavy Gauss Cannon Special Weapon Remote Datajack Slashing Weapon Chainsword Piercing Weapon Force Lance Build | -11 -10 -9 -8 -8 -8 -8 -7 -7 -7 -7 -6 -6 -5 -5 -4 -4 -3 -3 -2 -2 -1 -1 -1 ------- Run | Scr Mat Mat Mat Gar Mat Gar Fac Gar Fac Gar Fac Gar Fac Gar Fac Gar Res Gar Res Gar Acc Gar Acc Slots Evolved 18 | 3 . 1 1 1 . 2 . 3 . 1 . 1 1 1 . . . 1 . 1 . . 1 Power . | . . . . . . . . . . . . . . . . . . . . . . . . Propulsion 2 | 1 . . 1 . . . . . . . . . . . . . . . . . . . . Utility 14 | 1 . 1 . 1 . 1 . 3 . 1 . 1 1 1 . . . 1 . 1 . . 1 Weapon 2 | 1 . . . . . 1 . . . . . . . . . . . . . . . . . Parts Attached 152 | 4 2 10 4 13 3 6 7 11 1 5 5 8 2 6 2 18 11 10 3 7 . 6 8 Power 8 | 1 . 1 1 1 . . . . . . . . . . . 2 2 . . . . . . Engine 5 | 1 . 1 1 1 . . . . . . . . . . . 1 . . . . . . . Core . | . . . . . . . . . . . . . . . . . . . . . . . . Reactor 3 | . . . . . . . . . . . . . . . . 1 2 . . . . . . Propulsion 20 | 2 . 4 1 7 . . 2 1 . . . . . . 1 1 . . 1 . . . . Treads 1 | 1 . . . . . . . . . . . . . . . . . . . . . . . Leg . | . . . . . . . . . . . . . . . . . . . . . . . . Wheel 3 | 1 . 2 . . . . . . . . . . . . . . . . . . . . . Hover 3 | . . 2 1 . . . . . . . . . . . . . . . . . . . . Flight 13 | . . . . 7 . . 2 1 . . . . . . 1 1 . . 1 . . . . Utility 67 | . 2 3 . 1 1 1 1 4 1 3 3 8 1 5 1 6 2 7 . 5 . 6 6 Device 18 | . 1 1 . . . . . 1 . . 2 1 1 . 1 2 1 2 . . . 2 3 Storage . | . . . . . . . . . . . . . . . . . . . . . . . . Processor 2 | . 1 . . . . . 1 . . . . . . . . . . . . . . . . Hackware 41 | . . . . 1 . 1 . 3 . 3 1 6 . 5 . 3 1 5 . 5 . 4 3 Protection 6 | . . 2 . . 1 . . . 1 . . 1 . . . 1 . . . . . . . Artifact . | . . . . . . . . . . . . . . . . . . . . . . . . Weapon 57 | 1 . 2 2 4 2 5 4 6 . 2 2 . 1 1 . 9 7 3 2 2 . . 2 Energy Gun . | . . . . . . . . . . . . . . . . . . . . . . . . Energy Cannon . | . . . . . . . . . . . . . . . . . . . . . . . . Ballistic Gun 23 | 1 . 2 2 3 1 3 1 1 . 1 . . . 1 . 2 2 1 1 . . . 1 Ballistic Cannon 7 | . . . . . . . . . . . 2 . 1 . . 2 . . 1 1 . . . Launcher . | . . . . . . . . . . . . . . . . . . . . . . . . Special Weapon 9 | . . . . . . . 1 2 . . . . . . . 2 4 . . . . . . Impact Weapon . | . . . . . . . . . . . . . . . . . . . . . . . . Slashing Weapon 17 | . . . . 1 1 2 2 3 . 1 . . . . . 3 1 2 . 1 . . . Piercing Weapon 1 | . . . . . . . . . . . . . . . . . . . . . . . 1 Special Melee Weapon . | . . . . . . . . . . . . . . . . . . . . . . . . Unidentified Prototypes 6 | . . 1 . . . . 1 . . . 1 . . . . . 1 . 2 . . . . Parts Lost 2 | . . 1 . 1 . . . . . . . . . . . . . . . . . . . Power 1 | . . 1 . . . . . . . . . . . . . . . . . . . . . Propulsion 1 | . . . . 1 . . . . . . . . . . . . . . . . . . . Utility . | . . . . . . . . . . . . . . . . . . . . . . . . Weapon . | . . . . . . . . . . . . . . . . . . . . . . . . Highest Loss Streak 1 | . . 1 . 1 . . . . . . . . . . . . . . . . . . . Average Slot Usage (%) 99 | . 97 99 100 96 100 100 100 99 100 100 100 99 100 100 97 98 100 100 99 100 100 100 99 Engine 5 | . 14 12 11 10 10 9 8 7 6 6 6 5 5 5 5 1 . . . . . . . Reactor 1 | . . . . . . . . . . . . . . . . 3 5 5 5 4 4 4 4 Treads 1 | . 14 7 . . . . . . . . . . . . . . . . . . . . . Wheel 1 | . 14 7 . . . . . . . . . . . . . . . . . . . . . Hover 1 | . . 8 28 16 . . . . . . . . . . . . . . . . . . . Flight 15 | . . . . 14 30 27 25 22 20 18 18 17 16 15 15 14 15 15 15 14 14 14 13 Device 7 | . 12 12 11 10 10 9 8 7 6 6 6 5 10 10 10 9 9 5 5 4 4 4 3 Processor 4 | . 12 12 11 10 10 9 8 7 6 6 6 4 . . . . . . . . . . . Hackware 33 | . . . . 1 10 16 16 22 33 35 37 39 44 45 44 46 47 52 55 56 57 57 57 Protection 6 | . . 11 11 10 10 9 8 7 6 6 6 5 5 5 5 4 5 5 5 4 4 4 4 Ballistic Gun 8 | . 28 25 23 19 10 16 15 13 6 6 4 . . 4 5 1 1 2 2 . . . . Ballistic Cannon 2 | . . . . . . . . . . . 1 5 5 . . 4 5 5 6 4 4 4 4 Special Weapon 3 | . . . . . . . 1 6 6 6 6 5 5 5 5 4 4 5 5 4 4 4 4 Slashing Weapon 3 | . . . . 1 9 1 7 2 6 5 6 5 5 5 5 4 4 2 . 4 4 4 2 Naked Turns . | . . . . . . . . . . . . . . . . . . . . . . . . Heaviest Build 52 | 8 9 15 22 22 25 27 29 30 28 28 31 32 35 35 33 44 50 50 50 50 48 48 52 Greatest Support 59 | 16 16 16 29 29 27 27 35 36 36 36 36 36 36 36 41 46 51 51 59 59 59 59 59 Greatest Overweight (x) 1 | . . 1 . 1 . . . . . . . . . . . . . . . . . . . Average Overweight (x) . | . . . . . . . . . . . . . . . . . . . . . . . . Largest Inventory Capacity 6 | 1 1 1 1 3 3 3 4 4 4 4 4 4 4 4 5 6 6 6 6 6 6 6 6 Average Capacity 4 | 1 1 1 1 2 3 3 3 4 4 4 4 4 4 4 4 5 6 6 6 6 6 6 6 Most Carried 6 | 1 1 1 1 3 3 3 4 4 4 4 4 4 4 4 5 6 6 6 6 6 6 6 6 Average Carried 4 | . . . . 2 2 2 3 3 4 3 3 3 3 4 4 5 6 5 6 5 6 5 5 Final Capacity 6 | 1 1 1 1 3 3 3 4 4 4 4 4 4 4 4 5 6 6 6 6 6 6 6 6 Final Carried 6 | . 1 1 1 3 3 3 4 4 4 4 3 4 4 4 5 6 6 6 6 6 6 6 6 Class Distribution -------------------- 47% | Botlord-Sprinter 16% | Commander-Sprinter 15% | Mutant 6% | Scavenger-Mutant 5% | Hacker-Sprinter 4% | Hacker-Mutant 3% | Bothacker-Sprinter Dominant Class ---------------- Mutant | -10/Materials Mutant | -9/Materials Mutant | -8/Materials Mutant | -8/Garrison Scavenger-Mutant | -8/Materials Hacker-Mutant | -8/Garrison Hacker-Sprinter | -7/Factory Hacker-Sprinter | -7/Garrison Commander-Sprinter | -7/Factory Commander-Sprinter | -7/Garrison Botlord-Sprinter | -6/Factory Botlord-Sprinter | -6/Garrison Botlord-Sprinter | -5/Factory Botlord-Sprinter | -5/Garrison Botlord-Sprinter | -4/Factory Botlord-Sprinter | -4/Garrison Botlord-Sprinter | -3/Research Botlord-Sprinter | -3/Garrison Botlord-Sprinter | -2/Research Commander-Sprinter | -2/Garrison Commander-Sprinter | -1/Access Botlord-Sprinter | -1/Garrison Botlord-Sprinter | -1/Access Resources | -11 -10 -9 -8 -8 -8 -8 -7 -7 -7 -7 -6 -6 -5 -5 -4 -4 -3 -3 -2 -2 -1 -1 -1 ----------- Run | Scr Mat Mat Mat Gar Mat Gar Fac Gar Fac Gar Fac Gar Fac Gar Fac Gar Res Gar Res Gar Acc Gar Acc Matter Collected 6209 | 264 132 192 110 608 30 440 24 650 121 120 155 327 37 345 . 498 234 501 214 247 . 340 620 Remotely . | . . . . . . . . . . . . . . . . . . . . . . . . Salvage Created 3328 | 12 232 307 . 465 28 485 24 551 . . 100 50 . 171 . 251 . 226 81 . . . 345 Parts 232 | 1 21 30 . 34 3 37 2 27 . 2 5 1 . 11 . 25 2 10 3 . . . 18 Haulers Intercepted . | . . . . . . . . . . . . . . . . . . . . . . . . Recyclers Shooed 2 | . . 2 . . . . . . . . . . . . . . . . . . . . . Parts Field Recycled . | . . . . . . . . . . . . . . . . . . . . . . . . Retrieved Matter . | . . . . . . . . . . . . . . . . . . . . . . . . Parts Self-Destructed . | . . . . . . . . . . . . . . . . . . . . . . . . Prevented . | . . . . . . . . . . . . . . . . . . . . . . . . Kills | -11 -10 -9 -8 -8 -8 -8 -7 -7 -7 -7 -6 -6 -5 -5 -4 -4 -3 -3 -2 -2 -1 -1 -1 ------- Run | Scr Mat Mat Mat Gar Mat Gar Fac Gar Fac Gar Fac Gar Fac Gar Fac Gar Res Gar Res Gar Acc Gar Acc Combat Hostiles Destroyed 114 | . 11 12 . 19 . 21 . 14 . 1 1 3 . 6 . 9 1 7 2 . . . 7 Melee 4 | . . . . . . . . 1 . . . 1 . 1 . . . . . . . . 1 Guns 93 | . 11 12 . 19 . 21 . 13 . 1 1 . . 4 . 6 1 3 1 . . . . Cannons 17 | . . . . . . . . . . . . 2 . 1 . 3 . 4 1 . . . 6 Classes Destroyed 11 | 1 2 . . 2 1 . . 1 . 1 . . . . . 2 . . . . . . 1 Tunneler 1 | 1 . . . . . . . . . . . . . . . . . . . . . . . Watcher 3 | . . . . . 1 . 1 . . . . . . . . . . . . . . . 1 Swarmer 42 | . 8 4 . 6 . 14 . 1 . . . . . 3 . 4 . 2 . . . . . Saboteur 2 | . . . . . . . . . . . . . . . . 2 . . . . . . . Grunt 46 | . 3 8 . 10 . 5 . 10 . . . 2 . 3 . 1 . 2 1 . . . 1 Brawler 5 | . . . . 1 . 2 . 2 . . . . . . . . . . . . . . . Duelist 2 | . . . . 2 . . . . . . . . . . . . . . . . . . . Sentry 2 | . . . . . . . . . . 1 1 . . . . . . . . . . . . Demolisher 1 | . . . . . . . . . . . . . . . . . . . . . . . 1 Hunter 8 | . . . . . . . . . . . . . . . . 2 . 3 1 . . . 2 Programmer 6 | . . . . . . . . 1 . . . 1 . . . . 1 . . . . . 3 Best Kill Streak 6 | 1 3 4 . 6 1 4 1 5 . 1 1 1 . 1 . 3 1 3 1 . . . 4 Combat Bots Only 6 | . 3 4 . 6 . 4 . 5 . 1 1 1 . 1 . 3 1 3 1 . . . 4 Max Kills in Single Turn 2 | 1 2 1 . 1 1 2 1 1 . 1 1 1 . 1 . 2 1 2 1 . . . 1 Gunslinging 1 | . 1 . . . . 1 . . . . . . . . . . . . . . . . . Exploded . | . . . . . . . . . . . . . . . . . . . . . . . . Melee 1 | . . . . . . . . 1 . . . 1 . 1 . . . . . . . . 1 Uniques/NPCs Destroyed . | . . . . . . . . . . . . . . . . . . . . . . . . Combat | -11 -10 -9 -8 -8 -8 -8 -7 -7 -7 -7 -6 -6 -5 -5 -4 -4 -3 -3 -2 -2 -1 -1 -1 -------- Run | Scr Mat Mat Mat Gar Mat Gar Fac Gar Fac Gar Fac Gar Fac Gar Fac Gar Res Gar Res Gar Acc Gar Acc Damage Taken 9296 | . 427 355 . 1229 213 365 . 770 74 76 93 299 30 388 47 598 263 1246 233 236 70 358 1926 Core 7508 | . 328 285 . 1009 173 287 . 622 59 60 75 243 23 307 40 472 228 999 181 190 56 302 1569 Absorbed by Shields 18 | . . . . . . . . 12 . . . . . . . 6 . . . . . . . Redirected to Core 6097 | . 304 223 . 750 137 245 . 515 48 52 53 190 23 292 23 404 125 770 181 159 56 223 1324 Core Remaining (%) 93 | 100 75 94 . . . 100 . . . 100 . 100 . 100 . 96 . 76 . 96 . . . Volleys Fired 658 | 6 28 36 2 57 . 46 2 86 10 18 29 37 10 51 8 38 16 38 17 18 . 28 77 Largest 2 | 2 2 2 2 2 . 2 2 2 1 2 1 1 1 1 1 2 2 2 2 1 . 1 2 Hottest 96 | 40 40 40 40 56 . 53 53 56 30 56 40 40 30 57 30 94 94 94 94 70 . 50 96 Shots Fired 907 | 12 56 72 4 103 . 85 3 118 10 20 29 37 10 51 8 47 22 65 31 18 . 28 78 Gun 521 | 12 56 72 4 103 . 85 2 76 5 10 4 . . 25 . 19 6 27 14 . . . 1 Cannon 120 | . . . . . . . . . . . 1 13 . 6 . 21 6 29 14 6 . . 24 Launcher . | . . . . . . . . . . . . . . . . . . . . . . . . Special 266 | . . . . . . . 1 42 5 10 24 24 10 20 8 7 10 9 3 12 . 28 53 Kinetic 641 | 12 56 72 4 103 . 85 2 76 5 10 5 13 . 31 . 40 12 56 28 6 . . 25 Thermal . | . . . . . . . . . . . . . . . . . . . . . . . . Explosive . | . . . . . . . . . . . . . . . . . . . . . . . . Electromagnetic . | . . . . . . . . . . . . . . . . . . . . . . . . Robot Hit Streak 19 | 5 8 19 2 9 . 11 3 17 2 14 16 14 3 9 5 8 8 5 6 13 . 8 12 Robot Miss Streak 9 | 1 4 3 2 9 . 9 . 5 2 4 2 2 1 4 2 3 2 5 2 1 . 2 3 Penetration Max 1 | . . . . . . . . 1 . . . . . 1 . 1 . 1 . . . . . Secondary Targets 9 | . 1 . . 4 . 3 . 1 . . . . . . . . . . . . . . . Max Gunslinging Chain 1 | . 1 . . 1 . 1 . 1 . . . . . . . . . . . . . . . Shots Hit Robots 640 | 8 31 52 2 88 1 52 4 96 5 14 19 31 6 31 6 28 14 36 16 15 . 23 62 Core Hits 287 | 2 16 22 . 82 1 46 1 50 1 4 4 3 . 8 . 12 1 15 4 . . 1 14 Critical Hits 27 | . 1 . . . . . . 1 . 1 . . . 3 . 3 1 9 2 . . 1 5 Critical Kills 12 | . 1 . . . . . . . . . . . . 1 . 2 . 5 . . . . 3 Critical Parts Destroyed 15 | . . . . . . . . 1 . 1 . . . 2 . 1 1 4 2 . . 1 2 Melee Attacks 180 | . . . . 1 8 2 13 9 . 3 8 18 6 5 . 11 4 5 . 35 3 32 17 Impact . | . . . . . . . . . . . . . . . . . . . . . . . . Slashing 171 | . . . . 1 8 2 13 9 . 3 8 18 6 5 . 11 4 5 . 35 3 32 8 Piercing 9 | . . . . . . . . . . . . . . . . . . . . . . . 9 Sneak Attacks 2 | . . . . . . . 1 . . . 1 . . . . . . . . . . . . Combat Hostiles 1 | . . . . . . . . . . . 1 . . . . . . . . . . . . Follow-up Attacks . | . . . . . . . . . . . . . . . . . . . . . . . . Damage Inflicted 9926 | 60 345 537 29 1339 37 830 188 1330 65 135 190 572 . 687 . 769 163 913 410 132 . 127 1068 Guns 6184 | 60 345 537 29 1339 . 830 . 1296 65 135 63 . . 502 . 350 73 370 164 . . . 26 Cannons 2626 | . . . . . . . . . . . 31 328 . 135 . 419 90 543 246 132 . . 702 Explosions . | . . . . . . . . . . . . . . . . . . . . . . . . Melee 1116 | . . . . . 37 . 188 34 . . 96 244 . 50 . . . . . . . 127 340 Ramming . | . . . . . . . . . . . . . . . . . . . . . . . . Kinetic 8810 | 60 345 537 29 1339 . 830 . 1296 65 135 94 328 . 637 . 769 163 913 410 132 . . 728 Thermal . | . . . . . . . . . . . . . . . . . . . . . . . . Explosive . | . . . . . . . . . . . . . . . . . . . . . . . . Electromagnetic . | . . . . . . . . . . . . . . . . . . . . . . . . Impact . | . . . . . . . . . . . . . . . . . . . . . . . . Slashing 776 | . . . . . 37 . 188 34 . . 96 244 . 50 . . . . . . . 127 . Piercing 340 | . . . . . . . . . . . . . . . . . . . . . . . 340 Highest Corruption 7 | . . . . . . . . 2 2 2 . . . . . . . . . . . . 7 Average Corruption 2 | . . . . . . . . 1 2 2 . . . . . . . . . . . . 2 Corruption Purged . | . . . . . . . . . . . . . . . . . . . . . . . . Effects 25 | . . . . . . . . 8 2 6 . . . . . . . . . . . . 9 Message Errors 6 | . . . . . . . . 2 1 1 . . . . . . . . . . . . 2 Heat Flow Errors 2 | . . . . . . . . 2 . . . . . . . . . . . . . . . Energy Discharges 6 | . . . . . . . . 1 . 2 . . . . . . . . . . . . 3 Data Loss (minor) 2 | . . . . . . . . 1 1 . . . . . . . . . . . . . . Targeting Errors 8 | . . . . . . . . 1 . 3 . . . . . . . . . . . . 4 Weapon Failures 1 | . . . . . . . . 1 . . . . . . . . . . . . . . . Overload Shots . | . . . . . . . . . . . . . . . . . . . . . . . . Overflow Damage 262 | . . . . . . . 56 . . . . 92 . . . 12 . . 8 . . . 94 Projectiles 102 | . . . . . . . . . . . . 49 . . . 12 . . 8 . . . 33 Explosions . | . . . . . . . . . . . . . . . . . . . . . . . . Melee 160 | . . . . . . . 56 . . . . 43 . . . . . . . . . . 61 Knockbacks 28 | . . . . . . . . . . . . 2 . . . 7 2 7 3 1 . . 6 Impact . | . . . . . . . . . . . . . . . . . . . . . . . . Kinetic 25 | . . . . . . . . . . . . 2 . . . 5 2 7 3 1 . . 5 Secondary 3 | . . . . . . . . . . . . . . . . 2 . . . . . . 1 Self-Inflicted Damage . | . . . . . . . . . . . . . . . . . . . . . . . . Shots . | . . . . . . . . . . . . . . . . . . . . . . . . Rammed . | . . . . . . . . . . . . . . . . . . . . . . . . Targets Rammed . | . . . . . . . . . . . . . . . . . . . . . . . . Kicked . | . . . . . . . . . . . . . . . . . . . . . . . . Crushed . | . . . . . . . . . . . . . . . . . . . . . . . . Highest Temperature 438 | . 9 42 14 438 27 269 30 230 70 39 38 72 53 224 51 336 251 186 195 97 . 256 380 Average Temperature 76 | . 7 15 10 154 11 73 12 75 43 15 15 23 19 69 29 76 80 73 77 47 . 81 111 Received Heat Transfer 1902 | . 99 156 . 540 63 45 . 312 27 33 18 57 . 96 9 90 . 87 54 36 . 36 144 Effects 10 | . . . . 4 . . . . . . . . . 1 . . 3 . . . . . 2 Shutdowns 2 | . . . . 1 . . . . . . . . . . . . . . . . . . 1 Energy Bleed 1 | . . . . . . . . . . . . . . . . . . . . . . . 1 Interference 4 | . . . . . . . . . . . . . . 1 . . 3 . . . . . . Short Circuit 3 | . . . . 3 . . . . . . . . . . . . . . . . . . . Siege Activations . | . . . . . . . . . . . . . . . . . . . . . . . . Robots Corrupted . | . . . . . . . . . . . . . . . . . . . . . . . . Combat Hostiles . | . . . . . . . . . . . . . . . . . . . . . . . . Parts Fried 2 | . . . . . . . . 2 . . . . . . . . . . . . . . . Impact Corruptions . | . . . . . . . . . . . . . . . . . . . . . . . . Robots Melted . | . . . . . . . . . . . . . . . . . . . . . . . . Combat Hostiles . | . . . . . . . . . . . . . . . . . . . . . . . . Parts Melted 1 | . . . . . . . . . . . . . . . . 1 . . . . . . . Heat Transferred . | . . . . . . . . . . . . . . . . . . . . . . . . Parts Sabotaged 5 | . . . . . . . . . . . . . . . . 5 . . . . . . . Parts Stolen . | . . . . . . . . . . . . . . . . . . . . . . . . Parts Stripped . | . . . . . . . . . . . . . . . . . . . . . . . . Power Chain Reactions . | . . . . . . . . . . . . . . . . . . . . . . . . Missiles Intercepted . | . . . . . . . . . . . . . . . . . . . . . . . . Alert | -11 -10 -9 -8 -8 -8 -8 -7 -7 -7 -7 -6 -6 -5 -5 -4 -4 -3 -3 -2 -2 -1 -1 -1 ------- Run | Scr Mat Mat Mat Gar Mat Gar Fac Gar Fac Gar Fac Gar Fac Gar Fac Gar Res Gar Res Gar Acc Gar Acc Peak Influence 1621 | 5 300 418 93 637 397 813 497 917 483 880 477 604 319 264 293 741 476 410 337 409 268 259 1621 Average Influence 400 | 3 95 243 47 375 290 534 439 631 431 686 276 372 182 119 237 545 410 269 255 310 253 148 1376 Maximum Alert Level 5 | . 1 2 . 2 1 3 2 3 2 3 2 2 1 1 1 3 2 2 1 2 1 1 5 Low Security (%) 21 | 100 83 32 100 22 . . . . . . 23 11 51 70 33 . . 20 . 13 . 46 . Level 1 39 | . 16 61 . 22 100 26 18 12 32 28 73 46 48 29 66 19 28 61 100 79 100 53 . Level 2 25 | . . 6 . 54 . 49 81 44 67 10 2 42 . . . 63 71 17 . 6 . . . Level 3 9 | . . . . . . 24 . 43 . 60 . . . . . 16 . . . . . . . Level 4 . | . . . . . . . . . . . . . . . . . . . . . . . . Level 5 . | . . . . . . . . . . . . . . . . . . . . . . . . High Security . | . . . . . . . . . . . . . . . . . . . . . . . . Max Security 4 | . . . . . . . . . . . . . . . . . . . . . . . 99 Squads Dispatched 44 | . 1 3 . . 2 . 1 . 1 . 4 . 1 . . . 3 . 4 . . . 24 Investigation 4 | . 1 . . . . . 1 . . . 1 . . . . . 1 . . . . . . Extermination 3 | . . . . . . . . . . . 1 . 1 . . . 1 . . . . . . Reinforcement 10 | . . 3 . . 2 . . . 1 . 1 . . . . . . . 2 . . . 1 Assault 20 | . . . . . . . . . . . . . . . . . . . . . . . 20 Garrison 7 | . . . . . . . . . . . 1 . . . . . 1 . 2 . . . 3 Intercept . | . . . . . . . . . . . . . . . . . . . . . . . . Construction Impeded 1 | . . . . . . . . . . . . . . . . . . . 1 . . . . Haulers Reinforced 1 | . . . . . . . . . . . . . . . . . . . . . . . 1 Alert ID Control Effect 116 | . . . . . . . . . . . . 5 1 15 2 19 4 7 6 7 . 11 39 Stealth | -11 -10 -9 -8 -8 -8 -8 -7 -7 -7 -7 -6 -6 -5 -5 -4 -4 -3 -3 -2 -2 -1 -1 -1 --------- Run | Scr Mat Mat Mat Gar Mat Gar Fac Gar Fac Gar Fac Gar Fac Gar Fac Gar Res Gar Res Gar Acc Gar Acc Distress Signals 9 | . 2 2 . . 1 . . . . . 1 . . . . . . . . . . . 3 Communications Jammed . | . . . . . . . . . . . . . . . . . . . . . . . . Distress Signals . | . . . . . . . . . . . . . . . . . . . . . . . . Times Spotted 487 | . 17 27 3 24 28 27 4 32 7 13 10 38 4 27 3 37 10 18 12 28 . 34 84 Peak Tracking Total 34 | . 5 10 3 5 12 8 1 9 6 6 2 14 3 6 2 8 4 9 6 12 . 22 34 Tactical Retreats 31 | . 1 2 . 3 6 5 . 3 . 1 . 1 . 2 . 2 . . . . . . 5 Traps | -11 -10 -9 -8 -8 -8 -8 -7 -7 -7 -7 -6 -6 -5 -5 -4 -4 -3 -3 -2 -2 -1 -1 -1 ------- Run | Scr Mat Mat Mat Gar Mat Gar Fac Gar Fac Gar Fac Gar Fac Gar Fac Gar Res Gar Res Gar Acc Gar Acc Traps Triggered 47 | . . . . 4 . 3 . 8 1 2 . 4 1 5 . 3 1 6 . 3 . 6 . Indirectly . | . . . . . . . . . . . . . . . . . . . . . . . . Trap Hack Attempts . | . . . . . . . . . . . . . . . . . . . . . . . . Triggered . | . . . . . . . . . . . . . . . . . . . . . . . . Disarmed . | . . . . . . . . . . . . . . . . . . . . . . . . Reprogrammed . | . . . . . . . . . . . . . . . . . . . . . . . . Reused . | . . . . . . . . . . . . . . . . . . . . . . . . Traps Extracted . | . . . . . . . . . . . . . . . . . . . . . . . . Installed . | . . . . . . . . . . . . . . . . . . . . . . . . Triggered . | . . . . . . . . . . . . . . . . . . . . . . . . Machines | -11 -10 -9 -8 -8 -8 -8 -7 -7 -7 -7 -6 -6 -5 -5 -4 -4 -3 -3 -2 -2 -1 -1 -1 ---------- Run | Scr Mat Mat Mat Gar Mat Gar Fac Gar Fac Gar Fac Gar Fac Gar Fac Gar Res Gar Res Gar Acc Gar Acc Machines Disabled 58 | . . . . 2 . 2 . 3 . 3 . 10 . 6 4 8 . 5 1 7 . 7 . Max in Single Turn 1 | . . . . 1 . 1 . 1 . 1 . 1 . 1 . 1 . 1 . 1 . 1 . Garrison Relay 35 | . . . . 2 . 2 . 3 . 2 . 4 . 4 . 5 . 4 . 4 . 5 . Machines Sabotaged . | . . . . . . . . . . . . . . . . . . . . . . . . Garrisons Compromised . | . . . . . . . . . . . . . . . . . . . . . . . . Overloaded Fab Kills . | . . . . . . . . . . . . . . . . . . . . . . . . Fab Network Shutdowns . | . . . . . . . . . . . . . . . . . . . . . . . . Hacking | -11 -10 -9 -8 -8 -8 -8 -7 -7 -7 -7 -6 -6 -5 -5 -4 -4 -3 -3 -2 -2 -1 -1 -1 --------- Run | Scr Mat Mat Mat Gar Mat Gar Fac Gar Fac Gar Fac Gar Fac Gar Fac Gar Res Gar Res Gar Acc Gar Acc Machines Accessed 53 | . 6 1 5 . 7 . 6 . 4 . 7 . 8 . 2 . 2 . 2 . 3 . . Terminals 39 | . 6 1 4 . 4 . 5 . 3 . 6 . 5 . 1 . 1 . 1 . 2 . . Fabricators . | . . . . . . . . . . . . . . . . . . . . . . . . Repair Stations 2 | . . . . . 1 . . . . . . . 1 . . . . . . . . . . Recycling Units 2 | . . . . . 1 . . . . . . . 1 . . . . . . . . . . Scanalyzers . | . . . . . . . . . . . . . . . . . . . . . . . . Garrison Access 10 | . . . 1 . 1 . 1 . 1 . 1 . 1 . 1 . 1 . 1 . 1 . . Total Hacks 166 | . 28 5 15 . 22 . 17 . 9 . 27 . 25 . 3 . 3 . 6 . 6 . . Successful 101 | . 17 3 12 . 12 . 8 . 4 . 24 . 11 . 2 . 1 . 4 . 3 . . Failed 64 | . 11 2 3 . 10 . 9 . 5 . 2 . 14 . 1 . 2 . 2 . 3 . . Catastrophic 7 | . 1 . . . 2 . 2 . 1 . . . . . 1 . . . . . . . . Database Lockouts 4 | . . . . . . . . . . . 4 . . . . . . . . . . . . Manual 123 | . 19 4 12 . 15 . 15 . 6 . 21 . 24 . 2 . . . 5 . . . . Terminals 148 | . 28 5 14 . 16 . 16 . 8 . 26 . 21 . 2 . 2 . 5 . 5 . . Fabricators . | . . . . . . . . . . . . . . . . . . . . . . . . Repair Stations 2 | . . . . . 1 . . . . . . . 1 . . . . . . . . . . Recycling Units 6 | . . . . . 4 . . . . . . . 2 . . . . . . . . . . Scanalyzers . | . . . . . . . . . . . . . . . . . . . . . . . . Garrison Access 10 | . . . 1 . 1 . 1 . 1 . 1 . 1 . 1 . 1 . 1 . 1 . . Terminal Hacks 50 | . 12 1 5 . 4 . 2 . 1 . 16 . 6 . . . . . 1 . 2 . . Part Schematic 4 | . 3 . . . 1 . . . . . . . . . . . . . . . . . . Prototype ID Bank 9 | . 3 . . . . . 1 . . . 2 . 3 . . . . . . . . . . Level Access Points 1 | . . . . . . . . . . . . . . . . . . . . . 1 . . Branch Access Points 4 | . 1 . 1 . . . . . . . 1 . . . . . . . . . 1 . . Emergency Access Points 1 | . . . . . . . . . . . 1 . . . . . . . . . . . . Machine Index 1 | . . . . . 1 . . . . . . . . . . . . . . . . . . Fabricator Index 1 | . . . 1 . . . . . . . . . . . . . . . . . . . . Scanalyzer Index 1 | . 1 . . . . . . . . . . . . . . . . . . . . . . Alert Level 1 | . . 1 . . . . . . . . . . . . . . . . . . . . . Unreport Threat 11 | . 1 . 1 . 1 . 1 . 1 . 3 . 2 . . . . . 1 . . . . Locate Traps 9 | . 2 . 2 . . . . . . . 4 . 1 . . . . . . . . . . Recall Investigation 1 | . . . . . . . . . . . 1 . . . . . . . . . . . . Recall Reinforcements 2 | . . . . . 1 . . . . . 1 . . . . . . . . . . . . Registered Components 1 | . . . . . . . . . . . 1 . . . . . . . . . . . . Zone Layout 3 | . 1 . . . . . . . . . 2 . . . . . . . . . . . . Fabricator Hacks . | . . . . . . . . . . . . . . . . . . . . . . . . Repair Station Hacks . | . . . . . . . . . . . . . . . . . . . . . . . . Recycling Unit Hacks 1 | . . . . . 1 . . . . . . . . . . . . . . . . . . Retrieve Components 1 | . . . . . 1 . . . . . . . . . . . . . . . . . . Scanalyzer . | . . . . . . . . . . . . . . . . . . . . . . . . Garrison Access Hacks 10 | . . . 1 . 1 . 1 . 1 . 1 . 1 . 1 . 1 . 1 . 1 . . Unlock Access 10 | . . . 1 . 1 . 1 . 1 . 1 . 1 . 1 . 1 . 1 . 1 . . Unauthorized Hacks 99 | . 11 6 12 . 14 . 12 . 8 . 14 . 15 . 2 . . . 5 . . . . Terminals 37 | . 5 2 6 . 4 . 5 . 2 . 7 . 3 . 1 . . . 2 . . . . Track 18 | . 3 1 4 . 2 . 2 . . . 4 . 1 . . . . . 1 . . . . Assimilate 3 | . . . . . . . 1 . . . 1 . . . . . . . 1 . . . . Botnet 16 | . 2 1 2 . 2 . 2 . 2 . 2 . 2 . 1 . . . . . . . . Fabricators . | . . . . . . . . . . . . . . . . . . . . . . . . Repair Stations 2 | . . . . . 1 . . . . . . . 1 . . . . . . . . . . Mechanics 2 | . . . . . 1 . . . . . . . 1 . . . . . . . . . . Recycling Units 1 | . . . . . 1 . . . . . . . . . . . . . . . . . . Mask 1 | . . . . . 1 . . . . . . . . . . . . . . . . . . Scanalyzers . | . . . . . . . . . . . . . . . . . . . . . . . . Garrison Access . | . . . . . . . . . . . . . . . . . . . . . . . . Data Cores Recovered . | . . . . . . . . . . . . . . . . . . . . . . . . Used . | . . . . . . . . . . . . . . . . . . . . . . . . Hacking Detections 44 | . 6 1 5 . 5 . 5 . 4 . 6 . 6 . 1 . 1 . 1 . 3 . . Full Trace Events 2 | . 1 . . . . . 1 . . . . . . . . . . . . . . . . Feedback Events . | . . . . . . . . . . . . . . . . . . . . . . . . Feedback Blocked . | . . . . . . . . . . . . . . . . . . . . . . . . Robot Schematics Acquired . | . . . . . . . . . . . . . . . . . . . . . . . . Robots Built . | . . . . . . . . . . . . . . . . . . . . . . . . Matter . | . . . . . . . . . . . . . . . . . . . . . . . . Time . | . . . . . . . . . . . . . . . . . . . . . . . . Total Robot Build Rating . | . . . . . . . . . . . . . . . . . . . . . . . . Part Schematics Acquired 4 | . 3 . . . 1 . . . . . . . . . . . . . . . . . . Parts Built . | . . . . . . . . . . . . . . . . . . . . . . . . Matter . | . . . . . . . . . . . . . . . . . . . . . . . . Time . | . . . . . . . . . . . . . . . . . . . . . . . . Total Part Build Rating . | . . . . . . . . . . . . . . . . . . . . . . . . Parts Repaired . | . . . . . . . . . . . . . . . . . . . . . . . . Time . | . . . . . . . . . . . . . . . . . . . . . . . . Parts Recycled . | . . . . . . . . . . . . . . . . . . . . . . . . Recycled Matter . | . . . . . . . . . . . . . . . . . . . . . . . . Retrieved Matter . | . . . . . . . . . . . . . . . . . . . . . . . . Retrieved Components 2 | . . . . . 2 . . . . . . . . . . . . . . . . . . Parts Scanalyzed . | . . . . . . . . . . . . . . . . . . . . . . . . Part Schematics Acquired . | . . . . . . . . . . . . . . . . . . . . . . . . Parts Damaged . | . . . . . . . . . . . . . . . . . . . . . . . . Bothacking | -11 -10 -9 -8 -8 -8 -8 -7 -7 -7 -7 -6 -6 -5 -5 -4 -4 -3 -3 -2 -2 -1 -1 -1 ------------ Run | Scr Mat Mat Mat Gar Mat Gar Fac Gar Fac Gar Fac Gar Fac Gar Fac Gar Res Gar Res Gar Acc Gar Acc Used RIF Installer 10 | . . . . 1 . 1 . 1 . 1 . 1 . 1 . 1 . 1 . 1 . 1 . Coupler Efficiency 1 | . . . . . . 1 . . . . . . . . . . . . . . . . . Robot Detection 1 | . . . . . . . . 1 . . . . . . . . . . . . . . . Patrol Navigation 1 | . . . . . . . . . . . . . . . . 1 . . . . . . . Alert ID Control 1 | . . . . . . . . . . . . 1 . . . . . . . . . . . Structural Interface 1 | . . . . . . . . . . . . . . . . . . . . . . 1 . Program Shield 1 | . . . . . . . . . . . . . . 1 . . . . . . . . . Autoassimilate 2 | . . . . . . . . . . 1 . . . . . . . . . 1 . . . Crosswire 1 | . . . . . . . . . . . . . . . . . . 1 . . . . . Robots Hacked 191 | . . . . . . . 1 6 3 7 12 17 5 8 5 9 7 9 4 29 . 30 39 Non-combat 11 | . . . . . . . 1 . . . 5 . 1 . 1 . 1 . . . . . 2 Combat 180 | . . . . . . . . 6 3 7 7 17 4 8 4 9 6 9 4 29 . 30 37 Autoassimilated 87 | . . . . . . . . . . . 1 4 1 2 . 5 1 4 3 22 . 20 24 Robot Hacks Applied 111 | . . . . . . . 1 6 3 7 13 14 5 6 6 4 7 5 1 7 . 10 16 parse_system 6 | . . . . . . . 1 . . . 2 1 1 . . . . . . . . . 1 drop_inventory 2 | . . . . . . . . . . . 1 . . . 1 . . . . . . . . purge_threat 2 | . . . . . . . . . . . 1 . . . . . 1 . . . . . . locate_traps 1 | . . . . . . . . . . . 1 . . . . . . . . . . . . map_route 3 | . . . . . . . . . . . 1 . . . . . . . . . . . 2 mark_security 1 | . . . . . . . . . . . 1 . . . . . . . . . . . . find_garrison 1 | . . . . . . . . . . . . . . . 1 . . . . . . . . amplify_resonance 7 | . . . . . . . . . . 1 1 2 . . . . . 2 1 . . . . reboot_system 6 | . . . . . . . . . . . 2 . . . . . 1 . . . . . 3 streamctrl_high 1 | . . . . . . . . . . . . 1 . . . . . . . . . . . formatsys_low 1 | . . . . . . . . . . . . . 1 . . . . . . . . . . formatsys_high 80 | . . . . . . . . 6 3 6 3 10 3 6 4 4 5 3 . 7 . 10 10 Relay Couplers Released 57 | . . . . 3 . 3 . 4 . 4 . 6 . 6 . 7 . 7 . 8 . 9 . Machine Destruction 57 | . . . . 3 . 3 . 4 . 4 . 6 . 6 . 7 . 7 . 8 . 9 . Attached 41 | . . . . 1 . 1 . 3 . 3 1 6 . 5 . 3 1 5 . 5 . 4 3 Crosswired 12 | . . . . . . . . . . . . . . . . . . 5 . 4 . 3 . Robots Rewired 13 | . . . . . . . . 9 . . . . 1 . . . . . . . . 3 . Allies Hacked 2 | . . . . . . . . . . . 1 . . . . . 1 . . . . . . Hacks Repelled . | . . . . . . . . . . . . . . . . . . . . . . . . Allies | -11 -10 -9 -8 -8 -8 -8 -7 -7 -7 -7 -6 -6 -5 -5 -4 -4 -3 -3 -2 -2 -1 -1 -1 -------- Run | Scr Mat Mat Mat Gar Mat Gar Fac Gar Fac Gar Fac Gar Fac Gar Fac Gar Res Gar Res Gar Acc Gar Acc Total Allies 185 | . . . . . . . 1 15 3 6 5 15 6 8 4 9 6 7 4 29 . 33 34 Largest Group 36 | . . . . . . . 1 13 13 17 17 16 14 14 7 9 12 5 7 30 27 33 36 Highest-Rated Group 2064 | . . . . . . . 26 253 245 339 368 351 349 396 322 380 601 286 459 1799 1547 1974 2064 Highest-Rated Ally 147 | . . . . . . . 26 32 32 32 32 32 49 49 49 49 64 115 147 147 131 131 127 Total Orders 22 | . . . . . . . 2 8 2 3 . 3 . . . 4 . . . . . . . STAY 6 | . . . . . . . 1 1 1 1 . 1 . . . 1 . . . . . . . GOTO 8 | . . . . . . . . 6 . . . 1 . . . 1 . . . . . . . FOLLOW 8 | . . . . . . . 1 1 1 2 . 1 . . . 2 . . . . . . . Ally Attacks 995 | . . . . . . . . 52 22 45 13 83 5 130 . 67 25 31 37 89 . 120 276 Total Damage 30296 | . . . . . . . . 807 296 808 131 2161 74 2166 498 1741 818 1137 1282 2592 . 4883 10902 Kills 163 | . . . . . . . . 8 4 10 2 15 1 15 3 19 5 7 6 7 . 12 49 Allies Corrupted 15 | . . . . . . . . . . . . . 3 . . . 1 . . . . . 11 Allies Melted . | . . . . . . . . . . . . . . . . . . . . . . . . Intel | -11 -10 -9 -8 -8 -8 -8 -7 -7 -7 -7 -6 -6 -5 -5 -4 -4 -3 -3 -2 -2 -1 -1 -1 ------- Run | Scr Mat Mat Mat Gar Mat Gar Fac Gar Fac Gar Fac Gar Fac Gar Fac Gar Res Gar Res Gar Acc Gar Acc Robot Analysis Total . | . . . . . . . . . . . . . . . . . . . . . . . . Derelict Logs Recovered . | . . . . . . . . . . . . . . . . . . . . . . . . Drone Launches . | . . . . . . . . . . . . . . . . . . . . . . . . Drone Recoveries . | . . . . . . . . . . . . . . . . . . . . . . . . Exploration | -11 -10 -9 -8 -8 -8 -8 -7 -7 -7 -7 -6 -6 -5 -5 -4 -4 -3 -3 -2 -2 -1 -1 -1 ------------- Run | Scr Mat Mat Mat Gar Mat Gar Fac Gar Fac Gar Fac Gar Fac Gar Fac Gar Res Gar Res Gar Acc Gar Acc Turns Passed 10067 | 61 600 408 126 663 260 576 256 758 182 540 335 725 260 553 138 847 285 570 187 621 142 540 434 Spaces Moved 12408 | 25 440 318 207 717 603 693 608 739 290 449 549 945 431 587 217 869 419 628 228 611 240 899 696 Core . | . . . . . . . . . . . . . . . . . . . . . . . . Treads . | . . . . . . . . . . . . . . . . . . . . . . . . Legs 1 | 1 . . . . . . . . . . . . . . . . . . . . . . . Wheels 603 | 24 440 139 . . . . . . . . . . . . . . . . . . . . . Hover 606 | . . 179 207 220 . . . . . . . . . . . . . . . . . . . Flight 11198 | . . . . 497 603 693 608 739 290 449 549 945 431 587 217 869 419 628 228 611 240 899 696 Fastest Speed 30 | 100 100 56 52 34 34 34 30 30 30 30 30 30 30 30 30 30 30 30 30 30 30 30 30 Average Speed 35 | 100 100 75 54 41 34 34 30 30 30 30 30 30 30 30 30 30 30 30 30 30 30 30 30 Slowest Speed 140 | 120 100 140 56 120 34 34 34 30 30 30 30 30 30 30 30 32 30 30 30 30 30 30 30 Overloaded Moves . | . . . . . . . . . . . . . . . . . . . . . . . . Propulsion Burnouts . | . . . . . . . . . . . . . . . . . . . . . . . . Robots Hopped 79 | . . . . . 6 . 8 1 1 . 5 . 1 2 1 4 . 1 1 25 . 15 8 Cave-ins Triggered . | . . . . . . . . . . . . . . . . . . . . . . . . Exploration Rate (%) 44 | 3 81 46 20 64 62 75 21 65 12 56 19 83 14 72 8 79 15 76 9 84 10 80 18 Regions Visited 23 Branch Regions . Pre-discovered Areas . | . . . . . . . . . . . . . . . . . . . . . . . . Known Exits Taken 12 | . 1 1 1 . 1 . 1 . 1 . 1 . 1 . 1 . 1 . 1 . 1 . . Unknown Exits Taken 1 | 1 . . . . . . . . . . . . . . . . . . . . . . . Scrap Searched . | . . . . . . . . . . . . . . . . . . . . . . . . Spaces Dug 75 | . . . . . 7 . 9 . . . 6 1 6 . . . 4 . . 20 2 10 10 Terrain Destroyed 109 | . . . . . 7 . 9 1 . . 6 1 6 1 . 5 6 11 8 21 2 10 15 Melee 75 | . . . . . 7 . 9 . . . 6 1 6 . . . 4 . . 20 2 10 10 Projectile 34 | . . . . . . . . 1 . . . . . 1 . 5 2 11 8 1 . . 5 AOE . | . . . . . . . . . . . . . . . . . . . . . . . . Actions | -11 -10 -9 -8 -8 -8 -8 -7 -7 -7 -7 -6 -6 -5 -5 -4 -4 -3 -3 -2 -2 -1 -1 -1 --------- Run | Scr Mat Mat Mat Gar Mat Gar Fac Gar Fac Gar Fac Gar Fac Gar Fac Gar Res Gar Res Gar Acc Gar Acc Total 16982 | 50 549 422 217 979 639 954 648 1158 376 833 684 1331 545 911 284 1385 555 938 316 952 304 1098 854 Wait 2434 | 12 68 26 1 80 28 115 22 160 65 313 94 220 59 151 54 305 85 116 53 253 55 67 32 Move 12253 | 24 439 317 207 716 591 692 591 735 287 448 538 944 428 582 215 861 419 625 225 573 239 877 680 Hop 56 | . . . . . 6 . 8 1 1 . 5 . 1 2 1 3 . 1 1 12 . 6 8 Pick Up 37 | . 2 2 . 3 1 3 1 4 . 3 . 2 1 1 2 3 . 1 . 1 . 5 2 Fast Attach 61 | 4 2 7 3 4 . 1 4 2 . 1 4 6 2 2 1 10 3 2 2 . . . 1 Attach 13 | . . . 1 2 . 1 . 2 . 1 . . . . . 1 . . . 1 . 1 3 Detach 11 | 2 . . 1 . . . . . . 1 . 2 . 1 . . . 1 . . . 1 2 Swap 79 | . . 4 . 7 3 4 3 7 1 3 1 2 . 4 1 7 8 8 1 6 . 5 4 Drop 61 | 2 1 10 2 7 2 2 4 3 1 1 4 2 2 1 2 5 5 . 2 . . 3 . Fire 658 | 6 28 36 2 57 . 46 2 86 10 18 29 37 10 51 8 38 16 38 17 18 . 28 77 Melee 180 | . . . . 1 8 2 13 9 . 3 8 18 6 5 . 11 4 5 . 35 3 32 17 Ram . | . . . . . . . . . . . . . . . . . . . . . . . . Kick . | . . . . . . . . . . . . . . . . . . . . . . . . Crush . | . . . . . . . . . . . . . . . . . . . . . . . . Escape Stasis 748 | . . . . 54 . 54 . 113 11 29 . 75 34 90 . 98 . 108 . 29 . 53 . Rewire 5 | . . . . . . . . . . . 1 2 . . . . . . . . . 1 1 Trap . | . . . . . . . . . . . . . . . . . . . . . . . . Miscellaneous 386 | . 9 20 . 48 . 34 . 36 . 12 . 21 2 21 . 43 15 33 15 24 7 19 27 Route ------- -11/Scrapyard -10/Materials (discovered 3 exits: *Mat x2 / *Min) -9/Materials (discovered 2 exits: *Mat / [*Sto]) -8/Materials -8/Garrison (discovered 2 exits: *Mat x2) -8/Materials (discovered 3 exits: *Fac x2 / Gar) -8/Garrison (discovered 3 exits: *Fac x3) -7/Factory (discovered 2 exits: *Fac / Gar) -7/Garrison (discovered 2 exits: *Fac x2) -7/Factory (discovered 2 exits: *Fac / Gar) -7/Garrison (discovered 2 exits: *Fac x2) -6/Factory (discovered 3 exits: Low x2 / Gar) -6/Garrison (discovered 3 exits: *Fac x3) -5/Factory (discovered 2 exits: *Fac / Gar) -5/Garrison (discovered 2 exits: *Fac x2) -4/Factory -4/Garrison (discovered 3 exits: *Res x3) -3/Research (discovered 2 exits: *Res / Gar) -3/Garrison (discovered 3 exits: *Res x3) -2/Research -2/Garrison (discovered 3 exits: *Acc x3) -1/Access (discovered 3 exits: Sur / Com / Gar) -1/Garrison (discovered 3 exits: [*Acc x3]) -1/Access History --------- Turn | Location | Event 1 | -11/Scrapyard | Upgraded with Propulsion slot (x1) 1 | -11/Scrapyard | Upgraded with Utility slot (x1) 1 | -11/Scrapyard | Upgraded with Weapon slot (x1) 1 | -11/Scrapyard | Discovered new exit (range 1) 62 | -11/Scrapyard | Entered Materials 162 | -10/Materials | Identified exit to Mines 307 | -10/Materials | Build established: Mutant 406 | -10/Materials | Discovered new exit (range 11) 481 | -10/Materials | Discovered new exit (range 16) 661 | -10/Materials | Identified exit to Materials 662 | -10/Materials | Entered another Materials area 664 | -9/Materials | Reached level 2 668 | -9/Materials | Upgraded with Utility slot (x1) 721 | -9/Materials | Reached level 3 988 | -9/Materials | Discovered new exit (range 7) 1059 | -9/Materials | Discovered new exit (range 16) 1070 | -9/Materials | Identified exit to Materials 1070 | -9/Materials | Entered another Materials area 1072 | -8/Materials | Reached level 4 1142 | -8/Materials | Upgraded with Propulsion slot (x1) 1196 | -8/Materials | Identified exit to Garrison 1196 | -8/Materials | Entered Garrison 1198 | -8/Garrison | Reached level 5 1218 | -8/Garrison | Triggered checkpoint 1286 | -8/Garrison | Triggered checkpoint 1337 | -8/Garrison | Core integrity fell below 50% 1416 | -8/Garrison | Garrison Relay disabled 1416 | -8/Garrison | Reached level 6 1496 | -8/Garrison | Core integrity fell below 20% 1631 | -8/Garrison | Discovered new exit (range 9) 1696 | -8/Garrison | Discovered new exit (range 10) 1699 | -8/Garrison | Identified exit to Materials 1702 | -8/Garrison | Installed Relay Interface Framework 1738 | -8/Garrison | Triggered checkpoint 1755 | -8/Garrison | Reached level 7 1774 | -8/Garrison | Upgraded with Utility slot (x1) 1792 | -8/Garrison | Garrison Relay disabled 1818 | -8/Garrison | Triggered checkpoint 1830 | -8/Garrison | Spotted B-75 Beast 1854 | -8/Garrison | Build established: Scavenger-Mutant 1859 | -8/Garrison | Entered Materials 2000 | -8/Materials | Discovered new exit (range 17) 2005 | -8/Materials | Identified exit to Factory 2069 | -8/Materials | Discovered exit to Factory (range 10) 2119 | -8/Materials | Identified exit to Garrison 2119 | -8/Materials | Entered Garrison 2171 | -8/Garrison | Triggered checkpoint 2213 | -8/Garrison | Garrison Relay disabled 2216 | -8/Garrison | Upgraded with Utility slot (x1) 2304 | -8/Garrison | Reached level 8 2316 | -8/Garrison | Triggered checkpoint 2356 | -8/Garrison | Discovered exit to Factory (range 15) 2378 | -8/Garrison | Triggered checkpoint 2467 | -8/Garrison | Discovered exit to Factory (range 14) 2487 | -8/Garrison | Triggered checkpoint 2541 | -8/Garrison | Build established: Hacker-Mutant 2589 | -8/Garrison | Discovered exit to Factory (range 15) 2596 | -8/Garrison | Expanded RIF knowledge: Coupler Efficiency 2624 | -8/Garrison | Triggered checkpoint 2628 | -8/Garrison | Reached level 9 2665 | -8/Garrison | Garrison Relay disabled 2668 | -8/Garrison | Upgraded with Weapon slot (x1) 2695 | -8/Garrison | Entered Factory 2697 | -7/Factory | Reached level 10 2874 | -7/Factory | Discovered new exit (range 6) 2876 | -7/Factory | Identified exit to Factory 2945 | -7/Factory | Identified exit to Garrison 2951 | -7/Factory | Entered Garrison 2951 | -7/Garrison | Accompanied by 1 ally 3013 | -7/Garrison | Reached level 11 3031 | -7/Garrison | P-60 Hacker assimilated allied Virus 4a 3138 | -7/Garrison | Discovered new exit (range 15) 3174 | -7/Garrison | Triggered checkpoint 3178 | -7/Garrison | Triggered checkpoint 3198 | -7/Garrison | Triggered checkpoint 3201 | -7/Garrison | Build established: Hacker-Sprinter 3207 | -7/Garrison | Triggered checkpoint 3242 | -7/Garrison | Discovered new exit (range 16) 3262 | -7/Garrison | Identified exit to Factory 3264 | -7/Garrison | Expanded RIF knowledge: Robot Detection 3269 | -7/Garrison | Reached level 12 3340 | -7/Garrison | Upgraded with Utility slot (x2) 3502 | -7/Garrison | Triggered checkpoint 3518 | -7/Garrison | Garrison Relay disabled 3518 | -7/Garrison | Reached level 13 3523 | -7/Garrison | Upgraded with Utility slot (x1) 3540 | -7/Garrison | Triggered checkpoint 3562 | -7/Garrison | Triggered checkpoint 3595 | -7/Garrison | Garrison Relay disabled 3709 | -7/Garrison | Entered Factory 3709 | -7/Factory | Accompanied by 10 allies 3792 | -7/Factory | Discovered exit to Factory (range 5) 3846 | -7/Factory | Identified exit to Garrison 3891 | -7/Factory | Entered Garrison 3891 | -7/Garrison | Accompanied by 13 allies 4014 | -7/Garrison | Triggered checkpoint 4025 | -7/Garrison | Reached level 14 4042 | -7/Garrison | Triggered checkpoint 4050 | -7/Garrison | Triggered checkpoint 4062 | -7/Garrison | Build established: Commander-Sprinter 4079 | -7/Garrison | Discovered exit to Factory (range 11) 4084 | -7/Garrison | Expanded RIF knowledge: Autoassimilate 4102 | -7/Garrison | Reached level 15 4102 | -7/Garrison | Triggered checkpoint 4110 | -7/Garrison | Garrison Relay disabled 4114 | -7/Garrison | Upgraded with Utility slot (x1) 4160 | -7/Garrison | Discovered exit to Factory (range 10) 4182 | -7/Garrison | Triggered checkpoint 4195 | -7/Garrison | Garrison Relay disabled 4431 | -7/Garrison | Entered Factory 4431 | -6/Factory | Accompanied by 14 allies 4433 | -6/Factory | Reached level 16 4517 | -6/Factory | Build established: Botlord-Sprinter 4590 | -6/Factory | Identified exit to Lower Caves 4681 | -6/Factory | Central database locked down 4710 | -6/Factory | Garrison activated, responded to threat 4715 | -6/Factory | Reached level 17 4733 | -6/Factory | Identified exit to Garrison 4766 | -6/Factory | Entered Garrison 4766 | -6/Garrison | Accompanied by 16 allies 4795 | -6/Garrison | Spotted B-75 Beast 4799 | -6/Garrison | Triggered checkpoint 4816 | -6/Garrison | Allies destroyed B-75 Beast 4822 | -6/Garrison | Triggered checkpoint 4824 | -6/Garrison | Triggered checkpoint 4826 | -6/Garrison | Reached level 18 4857 | -6/Garrison | Discovered new exit (range 16) 4898 | -6/Garrison | Triggered checkpoint 4923 | -6/Garrison | Triggered checkpoint 4958 | -6/Garrison | Discovered new exit (range 13) 4970 | -6/Garrison | Identified exit to Factory 5067 | -6/Garrison | Discovered exit to Factory (range 9) 5071 | -6/Garrison | Expanded RIF knowledge: Alert ID Control 5101 | -6/Garrison | Triggered checkpoint 5147 | -6/Garrison | Garrison Relay disabled 5178 | -6/Garrison | Triggered checkpoint 5186 | -6/Garrison | Garrison Relay disabled 5218 | -6/Garrison | Triggered checkpoint 5233 | -6/Garrison | Garrison Relay disabled 5236 | -6/Garrison | Upgraded with Utility slot (x1) 5303 | -6/Garrison | Triggered checkpoint 5309 | -6/Garrison | Garrison Relay disabled 5319 | -6/Garrison | Triggered checkpoint 5491 | -6/Garrison | Entered Factory 5491 | -5/Factory | Accompanied by 12 allies 5493 | -5/Factory | Reached level 19 5504 | -5/Factory | Upgraded with Utility slot (x1) 5539 | -5/Factory | Discovered new exit (range 13) 5710 | -5/Factory | Identified exit to Garrison 5751 | -5/Factory | Entered Garrison 5751 | -5/Garrison | Accompanied by 14 allies 5751 | -5/Garrison | Reached level 20 5753 | -5/Garrison | Expanded RIF knowledge: Program Shield 5763 | -5/Garrison | Spotted B-75 Beast 5765 | -5/Garrison | Triggered checkpoint 5776 | -5/Garrison | Triggered checkpoint 5794 | -5/Garrison | Allies destroyed B-75 Beast 5796 | -5/Garrison | Triggered checkpoint 5848 | -5/Garrison | Discovered new exit (range 10) 5850 | -5/Garrison | Triggered checkpoint 5891 | -5/Garrison | Garrison Relay disabled 5892 | -5/Garrison | Triggered checkpoint 5963 | -5/Garrison | Discovered new exit (range 14) 5984 | -5/Garrison | Triggered checkpoint 6009 | -5/Garrison | Garrison Relay disabled 6037 | -5/Garrison | Reached level 21 6072 | -5/Garrison | Triggered checkpoint 6104 | -5/Garrison | Garrison Relay disabled 6109 | -5/Garrison | Upgraded with Utility slot (x1) 6140 | -5/Garrison | Triggered checkpoint 6164 | -5/Garrison | Garrison Relay disabled 6304 | -5/Garrison | Entered Factory 6304 | -4/Factory | Accompanied by 4 allies 6306 | -4/Factory | Reached level 22 6414 | -4/Factory | Identified exit to Garrison 6442 | -4/Factory | Entered Garrison 6442 | -4/Garrison | Accompanied by 7 allies 6470 | -4/Garrison | Triggered checkpoint 6486 | -4/Garrison | Reached level 23 6499 | -4/Garrison | Garrison Relay disabled 6574 | -4/Garrison | Garrison Relay disabled 6710 | -4/Garrison | Triggered checkpoint 6720 | -4/Garrison | Triggered checkpoint 6734 | -4/Garrison | Reached level 24 6800 | -4/Garrison | Garrison Relay disabled 6814 | -4/Garrison | Discovered new exit (range 15) 6850 | -4/Garrison | Triggered checkpoint 6944 | -4/Garrison | Triggered checkpoint 6951 | -4/Garrison | Garrison Relay disabled 6961 | -4/Garrison | Discovered new exit (range 20) 7102 | -4/Garrison | Discovered new exit (range 9) 7106 | -4/Garrison | Expanded RIF knowledge: Patrol Navigation 7116 | -4/Garrison | Triggered checkpoint 7153 | -4/Garrison | Garrison Relay disabled 7178 | -4/Garrison | Triggered checkpoint 7289 | -4/Garrison | Entered Research 7289 | -3/Research | Accompanied by 7 allies 7291 | -3/Research | Reached level 25 7378 | -3/Research | Discovered new exit (range 12) 7546 | -3/Research | Garrison activated, responded to threat 7551 | -3/Research | Reached level 26 7572 | -3/Research | Identified exit to Garrison 7574 | -3/Research | Entered Garrison 7574 | -3/Garrison | Accompanied by 5 allies 7609 | -3/Garrison | Triggered checkpoint 7627 | -3/Garrison | Garrison Relay disabled 7663 | -3/Garrison | Core integrity fell below 50% 7682 | -3/Garrison | Spotted B-86 Titan 7691 | -3/Garrison | Triggered checkpoint 7692 | -3/Garrison | Triggered checkpoint 7692 | -3/Garrison | Assimilated Titan 8a with formatsys_high 7696 | -3/Garrison | Triggered checkpoint 7700 | -3/Garrison | Core integrity fell below 20% 7792 | -3/Garrison | Triggered checkpoint 7811 | -3/Garrison | Discovered new exit (range 10) 7852 | -3/Garrison | Discovered new exit (range 16) 7866 | -3/Garrison | Triggered checkpoint 7879 | -3/Garrison | Expanded RIF knowledge: Crosswire 7879 | -3/Garrison | Reached level 27 7929 | -3/Garrison | Garrison Relay disabled 7934 | -3/Garrison | Triggered checkpoint 7962 | -3/Garrison | Triggered checkpoint 7968 | -3/Garrison | Garrison Relay disabled 7971 | -3/Garrison | Upgraded with Utility slot (x1) 8010 | -3/Garrison | Discovered new exit (range 20) 8040 | -3/Garrison | Triggered checkpoint 8045 | -3/Garrison | Garrison Relay disabled 8144 | -3/Garrison | Entered Research 8144 | -2/Research | Accompanied by 5 allies 8146 | -2/Research | Reached level 28 8173 | -2/Research | Garrison activated, responded to threat 8235 | -2/Research | Spotted B-90 Cyclops 8236 | -2/Research | Autoassimilated Cyclops 9a with RIF 8277 | -2/Research | Reached level 29 8306 | -2/Research | Identified exit to Garrison 8331 | -2/Research | Entered Garrison 8331 | -2/Garrison | Accompanied by 7 allies 8333 | -2/Garrison | Expanded RIF knowledge: Autoassimilate 8341 | -2/Garrison | Triggered checkpoint 8349 | -2/Garrison | Garrison Relay disabled 8383 | -2/Garrison | Spotted B-90 Cyclops 8384 | -2/Garrison | Assimilated Cyclops 9a with formatsys_high 8390 | -2/Garrison | Triggered checkpoint 8390 | -2/Garrison | Triggered checkpoint 8394 | -2/Garrison | Triggered checkpoint 8394 | -2/Garrison | Triggered checkpoint 8458 | -2/Garrison | Triggered checkpoint 8464 | -2/Garrison | Garrison Relay disabled 8472 | -2/Garrison | Discovered new exit (range 16) 8496 | -2/Garrison | Discovered new exit (range 12) 8506 | -2/Garrison | Triggered checkpoint 8515 | -2/Garrison | Garrison Relay disabled 8563 | -2/Garrison | Discovered new exit (range 9) 8568 | -2/Garrison | Triggered checkpoint 8582 | -2/Garrison | Garrison Relay disabled 8582 | -2/Garrison | Reached level 30 8590 | -2/Garrison | Upgraded with Utility slot (x1) 8805 | -2/Garrison | Build established: Commander-Sprinter 8952 | -2/Garrison | Entered Access 8952 | -1/Access | Accompanied by 27 allies 8954 | -1/Access | Reached level 31 9040 | -1/Access | Identified exit to Surface 9040 | -1/Access | Identified exit to Command 9051 | -1/Access | Identified exit to Garrison 9094 | -1/Access | Entered Garrison 9094 | -1/Garrison | Accompanied by 15 allies 9104 | -1/Garrison | Triggered checkpoint 9106 | -1/Garrison | Spotted B-99 Colossus 9118 | -1/Garrison | Allies destroyed B-99 Colossus 9130 | -1/Garrison | Garrison Relay disabled 9130 | -1/Garrison | Reached level 32 9159 | -1/Garrison | Spotted B-99 Colossus 9160 | -1/Garrison | Triggered checkpoint 9163 | -1/Garrison | Triggered checkpoint 9166 | -1/Garrison | Triggered checkpoint 9168 | -1/Garrison | Triggered checkpoint 9188 | -1/Garrison | Allies destroyed B-99 Colossus 9276 | -1/Garrison | Discovered new exit (range 14) 9282 | -1/Garrison | Expanded RIF knowledge: Structural Interface 9292 | -1/Garrison | Garrison Relay disabled 9296 | -1/Garrison | Triggered checkpoint 9318 | -1/Garrison | Discovered new exit (range 10) 9330 | -1/Garrison | Triggered checkpoint 9334 | -1/Garrison | Triggered checkpoint 9344 | -1/Garrison | Garrison Relay disabled 9351 | -1/Garrison | Garrison Relay disabled 9361 | -1/Garrison | Build established: Botlord-Sprinter 9383 | -1/Garrison | Triggered checkpoint 9390 | -1/Garrison | Garrison Relay disabled 9402 | -1/Garrison | Discovered new exit (range 15) 9634 | -1/Garrison | Entered Access 9634 | -1/Access | Accompanied by 33 allies 9637 | -1/Access | Reached level 33 9637 | -1/Access | Maximum security lockdown engaged 9693 | -1/Access | Build established: Commander-Sprinter 9741 | -1/Access | Upgraded with Utility slot (x1) 9986 | -1/Access | Found Antimissile System 10061 | -1/Access | Core integrity fell below 50% 10065 | -1/Access | Core integrity fell below 20% 10068 | -1/Access | Destroyed by G-73 Enforcer with Phase Gun Last Messages --------------- 10051_ Enforcer 10k destroyed. 10052_ Protomatter-77 decays. 10052_ RIF repels hacking attempt against Enforcer 10h. 10052_ Remote Datajack intercepted. 10053_ Enforcer 10j system terminally corrupted. 10053_ Enforcer 10m destroyed. 10053_ Remote Datajack intercepted. 10054_ RIF automatically installing new Enforcer 10n system data, ETC: 6. 10054_ Champion 10c destroyed. 10055_ RIF automatically installing new Enforcer 10o system data, ETC: 6. 10055_ Enforcer 10h destroyed. 10055_ P-80 Master repels hacking attempt. 10056_ P-80 Master suffers critical hit. 10056_ Destroyed Mic. Fission Core. 10056_ P-80 Master knocked back. 10061_ P-80 Master suffers critical hit. 10064_ P-80 Master resets P-80 Master, system corruption cleaned. 10067_ Acquired 137 matter. 10067_ P-80 Master resets G-73 Enforcer, system corruption cleaned. 10068_ Overheating: Energy bleed (-45). Map ----- +----------------------------------------------------+ | ?????# " [%]! #??????????????????????? | | ?????# #=*!!% #??????????????????????? | | ?????# #[%*=! #??????????????????????? | | ?????### ########## !== #??????????????????????? | | ?????############## ! % #??????????????????????? | | ?????# ] # =*% #??????????????????????? | | ?????? # [ #??????????????????????? | | ?????#""" """"" + #??????????????????????? | | ?????#""" """"" # l #??????????????????????? | | ?????#""" """"" # #??????????????????????? | | ??#??#"S """"" # ########???????????????? | | ?????#"" """"" # * #???????????????? | | ?????#"" """"" # %= #???????????????? | | ?#???# # ! #???????????????? | | ?????# # pg #???????????????? | | ?????# # #???????????????? | | ?????# # g l #???????????????? | | ################### ![% #???????????????? | | # #?????######p###########???????????????? | | # #?????# pgp% #???????????????????? | | # !#?????# i =g! #???????????????????? | | # [[ #?????# g=bp*[ #???????????????????? | | # [[ #?????# %g/g== #???????????????????? | | # [ #?????# !/p*!*= #???????????????????? | | # #?????# ==p=%! #???????????????????? | | # #?????# /%!%!@= #???????????????????? | | #####+########??# /*=![* #???????????????????? | | ????# # #??# ! #???????????????????? | | ?#??# # #??# d % #???????????????????? | | ##### # #??# #???????????????????? | | + #??# #???????????????????? | | # #??######+#######???????????????????? | | # * #???????# #?????????????????????????? | | ########???????# #?????????????????????????? | | #??????#???????# #?????????????????????????? | | ##????????#????# #??????????????????######## | | ####??????#???# #??????????????????# ! | | = [ ###?????????# #??????????????????#[ * | | *!%* #######???# #??????????????????# | | =![[% % # #???# #??????????????????# | | ! |!= *### ##### #??????????????????# " | | [ !==! ! #??????????????????# """ | | ! * ###[% ]#######??????????????????# """ | | = [% ##%=%!%"#?????????###########???# " | | # # = +############?# """"" ###########+ | | %!! = #?# ""Y"" # | | #= %*! = #?# # | | !!% !=* /%% #?# / | | = !*!=[!%#?# # ######/ | | # = !%*%=![#?# ! # ## | +----------------------------------------------------+ Best States ------------- Heat Dissipation 45 Energy Generation 28 Energy Capacity 380 Matter Stores 300 Matter Capacity 300 Sight Range 17 Robot Scan Range 16 Terrain Scan Range 24 Terrain Scan Density 210 Armor Coverage 225 Resistance: KI 30 Resistance: TH 20 Point Defense Rating 240 Evasion (%) 64 Recoil Reduction 1 Offensive Hacking 20 Defensive Hacking 10 Item Schematics ----------------- Datajack | -10/Materials | Hacked Flight Unit | -10/Materials | Hacked Hover Unit | -10/Materials | Hacked Imp. Terrain Scanner | -8/Materials | Hacked Robot Schematics ------------------ None Fabricated ------------ Nothing Alien Tech Used ----------------- None Achievements -------------- Pwned Challenges ------------ None RPGLIKE | -11 -10 -9 -8 -8 -8 -8 -7 -7 -7 -7 -6 -6 -5 -5 -4 -4 -3 -3 -2 -2 -1 -1 -1 --------- Run | Scr Mat Mat Mat Gar Mat Gar Fac Gar Fac Gar Fac Gar Fac Gar Fac Gar Res Gar Res Gar Acc Gar Acc Levels Raised 32 | . . 2 1 3 . 2 1 3 . 2 2 1 1 2 1 2 2 1 2 1 1 1 1 XP Earned 52161 | 3000 1335 2950 1560 3512 70 3099 1695 4459 550 2259 2605 2692 1670 2024 1850 2854 2381 1851 2612 1551 2090 2016 1476 XP Spent 49580 | 1750 600 800 1000 2550 1700 2200 2050 7800 . 2600 . 2900 3320 3500 1250 1900 660 4500 . 4100 . . 4400 Upgrades 56 | 4 2 1 3 4 3 2 5 7 . 1 . 1 3 1 1 2 3 11 . 1 . . 1 Propulsion Slot 2 | 1 . . 1 . . . . . . . . . . . . . . . . . . . . Utility Slot 14 | 1 . 1 . 1 . 1 . 3 . 1 . 1 1 1 . . . 1 . 1 . . 1 Weapon Slot 2 | 1 . . . . . 1 . . . . . . . . . . . . . . . . . Core Integrity 10 | . . . . . . . . . . . . . . . . . . 10 . . . . . Heat Dissipation 3 | . . . . . . . 1 . . . . . . . . . 2 . . . . . . Energy Generation 1 | . . . . . . . 1 . . . . . . . . . . . . . . . . Mass Support 5 | . . . 1 1 1 . . . . . . . . . . 1 1 . . . . . . Inventory Capacity 6 | 1 . . . 2 . . 1 . . . . . . . 1 1 . . . . . . . Sight Range 1 | . . . 1 . . . . . . . . . . . . . . . . . . . . Terrain Scan Density 2 | . . . . . . . . . . . . . 2 . . . . . . . . . . Hack Attack % 4 | . 2 . . . 2 . . . . . . . . . . . . . . . . . . Hack Defense % 2 | . . . . . . . 2 . . . . . . . . . . . . . . . . TH Resistance % 4 | . . . . . . . . 4 . . . . . . . . . . . . . . . Protomatter Created 2017 | . 61 186 . 418 . 240 . 287 . 74 . 56 . 101 . 148 48 130 82 . . . 186 Integrity Restored 7851 | . 183 420 . 1080 . 628 . 741 . 170 . 429 32 388 . 826 276 744 345 533 126 366 564 Core 6394 | . 183 396 . 1015 . 488 . 599 . 142 . 318 23 307 . 489 244 744 345 245 99 302 455 Parts 1457 | . . 24 . 65 . 140 . 142 . 28 . 111 9 81 . 337 32 . . 288 27 64 109 Protomatter Decayed 5200 | . . 45 . 56 . 17 . 146 . 174 18 531 133 860 . 192 25 228 67 258 . 861 1589 Game ------ Seed HelicalPhasingShifter Manual? 0 Play Time 06:24:38 Cumulative 608.0 hours Start 2019.12.26 @ 11:04:40 End 2019.12.30 @ 12:23:22 Sessions 21 Manual Loads 0 Difficulty Rogue Special Mode Winter2019/RPGLIKE Game No. 184 Rogue 184 Adventurer 0 Explorer 0 Win Type - Total 23 Types 17/1/2/3/0/0/0 Lore% 62 Gallery% 83 Achievement% 65 Wizard Run 0 Options --------- ASCII 0 Keyboard 1 Movement Numpad Keybinds 0 Fullscreen 1 Font 24/Smallcaps Map View 76x50 Tactical HUD 1 Map Filters NONE Filters NONE Steam X RUN: 042777f6-b833-42d3-bd68-ff479cdaca60